fUST/lending_fUST_20251205
["ID","MTS","AMOUNT","RATE_DAILY","PERIOD"]
[396273261,1764913832403,-4635.46595496,0.00019078,2]
[396273262,1764913832414,-172.74420852,0.00019078,2]
[396273263,1764913832424,-3579.0,0.0001915,4]
[396273264,1764913832434,-500.0,0.00019178,2]
[396273265,1764913832444,-500.0,0.00019178,2]
[396273266,1764913832454,-500.0,0.00019178,2]
[396273267,1764913832464,-500.0,0.00019178,2]
[396273268,1764913832473,-500.0,0.00019178,2]
[396273269,1764913832483,-500.0,0.00019178,2]
[396273270,1764913832492,-500.0,0.00019178,2]
[396273271,1764913832502,-500.0,0.00019178,2]
[396273272,1764913832512,-500.0,0.00019178,2]
[396273273,1764913832522,-500.0,0.00019178,2]
[396273274,1764913832531,-500.0,0.00019178,2]
[396273275,1764913832541,-500.0,0.00019178,2]
[396273276,1764913832550,-500.0,0.00019178,2]
[396273277,1764913832560,-500.0,0.00019178,2]
[396273278,1764913832570,-500.0,0.00019178,2]
[396273279,1764913832580,-500.0,0.00019178,2]
[396273280,1764913832589,-500.0,0.00019178,2]
[396273281,1764913832598,-500.0,0.00019178,2]
[396273282,1764913832607,-500.0,0.00019178,2]
[396273283,1764913832617,-500.0,0.00019178,2]
[396273284,1764913832627,-500.0,0.00019178,2]
[396273285,1764913832636,-500.0,0.00019178,2]
[396273286,1764913832646,-500.0,0.00019178,2]
[396273287,1764913832655,-500.0,0.00019178,2]
[396273288,1764913832665,-1388.07,0.00019178,2]
[396273289,1764913832675,-500.0,0.00019178,2]
[396273290,1764913832685,-1065.75,0.00019178,2]
[396273291,1764913832695,-500.0,0.00019178,2]
[396273292,1764913832704,-500.0,0.00019178,2]
[396273293,1764913832714,-1294.83,0.00019178,2]
[396273294,1764913832724,-2330.86,0.00019178,2]
[396273295,1764913832734,-500.0,0.00019178,2]
[396273296,1764913832743,-500.0,0.00019178,2]
[396273297,1764913832753,-500.0,0.00019178,2]
[396273298,1764913832763,-500.0,0.00019178,2]
[396273299,1764913832772,-500.0,0.00019178,2]
[396273300,1764913832782,-500.0,0.00019178,2]
[396273301,1764913832791,-500.0,0.00019178,2]
[396273302,1764913832801,-500.0,0.00019178,2]
[396273303,1764913832810,-151.0,0.00019178,2]
[396273304,1764913832820,-515.97,0.00019178,2]
[396273305,1764913832830,-151.0,0.00019178,2]
[396273306,1764913832840,-151.0,0.00019178,2]
[396273307,1764913832849,-151.0,0.00019178,2]
[396273308,1764913832859,-151.0,0.00019178,2]
[396273309,1764913832868,-151.0,0.00019178,2]
[396273310,1764913832878,-151.0,0.00019178,2]
[396273311,1764913832888,-231.921482,0.00019178,2]
[396273312,1764913832898,-151.0,0.00019178,2]
[396273313,1764913832907,-151.0,0.00019178,2]
[396273314,1764913832916,-151.0,0.00019178,2]
[396273315,1764913832926,-151.0,0.00019178,2]
[396273316,1764913832936,-151.0,0.00019178,2]
[396273317,1764913832946,-151.0,0.00019178,2]
[396273318,1764913832956,-500.0,0.00019178,2]
[396273319,1764913832965,-151.0,0.00019178,2]
[396273320,1764913832975,-151.0,0.00019178,2]
[396273321,1764913832985,-151.0,0.00019178,2]
[396273322,1764913832995,-151.0,0.00019178,2]
[396273323,1764913833360,-152.370044,0.00019178,2]
[396273324,1764913833372,-151.0,0.00019178,2]
[396273325,1764913833383,-151.0,0.00019178,2]
[396273326,1764913833393,-151.0,0.00019178,2]
[396273327,1764913833403,-151.0,0.00019178,2]
[396273328,1764913833413,-151.0,0.00019178,2]
[396273329,1764913833424,-151.0,0.00019178,2]
[396273330,1764913833436,-151.0,0.00019178,2]
[396273331,1764913833446,-221.645981,0.00019178,2]
[396273332,1764913833456,-500.0,0.00019178,2]
[396273333,1764913833465,-500.0,0.00019178,2]
[396273334,1764913833475,-948.52,0.00019178,2]
[396273335,1764913833486,-1659.29,0.00019178,2]
[396273336,1764913833497,-2802.41,0.00019178,2]
[396273337,1764913833507,-151.0,0.00019178,2]
[396273338,1764913833517,-151.0,0.00019178,2]
[396273339,1764913833528,-151.0,0.00019178,2]
[396273340,1764913833538,-151.0,0.00019178,2]
[396273341,1764913833548,-151.0,0.00019178,2]
[396273342,1764913833558,-151.0,0.00019178,2]
[396273343,1764913833568,-151.0,0.00019178,2]
[396273344,1764913833578,-151.0,0.00019178,2]
[396273345,1764913833588,-151.0,0.00019178,2]
[396273346,1764913833598,-151.0,0.00019178,2]
[396273347,1764913833608,-151.0,0.00019178,2]
[396273348,1764913833617,-151.0,0.00019178,2]
[396273349,1764913833628,-223.454628,0.00019178,2]
[396273350,1764913833638,-500.0,0.00019178,2]
[396273351,1764913833647,-614.19,0.00019178,2]
[396273352,1764913833657,-500.0,0.00019178,2]
[396273353,1764913833668,-500.0,0.00019178,2]
[396273354,1764913833678,-729.3,0.00019178,2]
[396273355,1764913833688,-151.0,0.00019178,2]
[396273356,1764913833698,-152.095553,0.00019178,2]
[396273357,1764913833709,-500.0,0.00019178,2]
[396273358,1764913833719,-620.92,0.00019178,2]
[396273359,1764913833729,-2218.17,0.00019178,2]
[396273360,1764913833739,-151.0,0.00019178,2]
[396273361,1764913833748,-500.0,0.00019178,2]
[396273362,1764913833758,-151.0,0.00019178,2]
[396273363,1764913833769,-151.0,0.00019178,2]
[396273364,1764913833779,-151.0,0.00019178,2]
[396273365,1764913833789,-151.0,0.00019178,2]
[396273366,1764913833799,-658.1,0.00019178,2]
[396273367,1764913833808,-162.014,0.00019178,2]
[396273368,1764913833818,-151.0,0.00019178,2]
[396273369,1764913833828,-151.0,0.00019178,2]
[396273370,1764913833839,-801.97,0.00019178,2]
[396273371,1764913833849,-401.98154816,0.00019178,2]
[396273372,1764913833859,-500.0,0.00019178,2]
[396273373,1764913833870,-500.0,0.00019178,2]
[396273374,1764913833879,-500.0,0.00019178,2]
[396273375,1764913833889,-500.0,0.00019178,2]
[396273376,1764913833899,-500.0,0.00019178,2]
[396273377,1764913833909,-500.0,0.00019178,2]
[396273378,1764913833919,-151.0,0.00019178,2]
[396273379,1764913833928,-151.0,0.00019178,2]
[396273380,1764913833938,-151.0,0.00019178,2]
[396273381,1764913833948,-151.0,0.00019178,2]
[396273382,1764913833958,-151.0,0.00019178,2]
[396273383,1764913833967,-151.0,0.00019178,2]
[396273384,1764913833978,-151.0,0.00019178,2]
[396273385,1764913833987,-151.0,0.00019178,2]
[396273386,1764913833996,-151.0,0.00019178,2]
[396273387,1764913834006,-160.333119,0.00019178,2]
[396273388,1764913834016,-500.0,0.00019178,2]
[396273389,1764913834026,-500.0,0.00019178,2]
[396273390,1764913834036,-500.0,0.00019178,2]
[396273391,1764913834046,-500.0,0.00019178,2]
[396273392,1764913834057,-1284.48,0.00019178,2]
[396273393,1764913834066,-500.0,0.00019178,2]
[396273394,1764913834076,-500.0,0.00019178,2]
[396273395,1764913834086,-514.87536498,0.00019178,2]
[396273396,1764913834095,-500.0,0.00019178,2]
[396273397,1764913834105,-500.0,0.00019178,2]
[396273398,1764913834115,-500.0,0.00019178,2]
[396273399,1764913834125,-500.0,0.00019178,2]
[396273400,1764913834134,-1088.24,0.00019178,2]
[396273401,1764913834144,-500.0,0.00019178,2]
[396273402,1764913834153,-500.0,0.00019178,2]
[396273403,1764913834163,-500.0,0.00019178,2]
[396273404,1764913834172,-500.0,0.00019178,2]
[396273405,1764913834183,-563.88,0.00019178,2]
[396273406,1764913834193,-151.0,0.00019178,2]
[396273407,1764913834203,-151.228647,0.00019178,2]
[396273408,1764913834214,-500.0,0.00019178,2]
[396273409,1764913834224,-500.0,0.00019178,2]
[396273410,1764913834235,-837.08,0.00019178,2]
[396273411,1764913834244,-521.12657544,0.00019178,2]
[396273412,1764913834729,-86.34342456,0.00019178,2]
[396273413,1764913834741,-500.0,0.00019178,2]
[396273414,1764913834752,-655.42,0.00019178,2]
[396273415,1764913834761,-500.0,0.00019178,2]
[396273416,1764913834771,-953.71,0.00019178,2]
[396273417,1764913834781,-151.0,0.00019178,2]
[396273418,1764913834792,-151.0,0.00019178,2]
[396273419,1764913834802,-151.0,0.00019178,2]
[396273420,1764913834811,-151.0,0.00019178,2]
[396273421,1764913834822,-500.0,0.00019178,2]
[396273422,1764913834833,-151.0,0.00019178,2]
[396273423,1764913834842,-151.0,0.00019178,2]
[396273424,1764913834853,-500.0,0.00019178,2]
[396273425,1764913834862,-603.75,0.00019178,2]
[396273426,1764913834872,-638.21,0.00019178,2]
[396273427,1764913834882,-538.44,0.00019178,2]
[396273428,1764913834892,-979.23,0.00019178,2]
[396273429,1764913834902,-432.68862139,0.00019178,2]
[396273430,1764913834912,-500.0,0.00019178,2]
[396273431,1764913834922,-534.70729873,0.00019178,2]
[396273432,1764913834932,-500.0,0.00019178,2]
[396273433,1764913834942,-500.0,0.00019178,2]
[396273434,1764913834952,-500.0,0.00019178,2]
[396273435,1764913834962,-500.0,0.00019178,2]
[396273436,1764913834972,-826.74,0.00019178,2]
[396273437,1764913834982,-500.0,0.00019178,2]
[396273438,1764913834992,-500.0,0.00019178,2]
[396273439,1764913835002,-161.16540941,0.00019178,2]
[396273440,1764913835012,-500.0,0.00019178,2]
[396273441,1764913835022,-500.0,0.00019178,2]
[396273442,1764913835031,-516.2512867,0.00019178,2]
[396273443,1764913835042,-164.0433742,0.00019178,2]
[396273444,1764913835052,-572.75414292,0.00019178,2]
[396273445,1764913835062,-1121.76,0.00019178,2]
[396273446,1764913835072,-500.0,0.00019178,2]
[396273447,1764913835082,-500.0,0.00019178,2]
[396273448,1764913835091,-893.96,0.00019178,2]
[396273449,1764913835101,-899.55,0.00019178,2]
[396273450,1764913835110,-1065.01,0.00019178,2]
[396273451,1764913835123,-500.0,0.00019178,2]
[396273452,1764913835133,-500.0,0.00019178,2]
[396273453,1764913835143,-589.66,0.00019178,2]
[396273454,1764913835153,-500.0,0.00019178,2]
[396273455,1764913835164,-500.0,0.00019178,2]
[396273456,1764913835173,-500.0,0.00019178,2]
[396273457,1764913835183,-1207.08,0.00019178,2]
[396273458,1764913835193,-1681.17,0.00019178,2]
[396273459,1764913835203,-500.0,0.00019178,2]
[396273460,1764913835215,-500.0,0.00019178,2]
[396273461,1764913835224,-500.0,0.00019178,2]
[396273462,1764913835233,-500.0,0.00019178,2]
[396273463,1764913835243,-2017.38,0.00019178,2]
[396273464,1764913835252,-500.0,0.00019178,2]
[396273465,1764913835262,-527.98,0.00019178,2]
[396273466,1764913835273,-151.0,0.00019178,2]
[396273467,1764913835284,-500.0,0.00019178,2]
[396273468,1764913835294,-609.52,0.00019178,2]
[396273469,1764913835304,-500.0,0.00019178,2]
[396273470,1764913835318,-500.0,0.00019178,2]
[396273471,1764913835328,-729.59,0.00019178,2]
[396273472,1764913835338,-500.0,0.00019178,2]
[396273473,1764913835347,-500.0,0.00019178,2]
[396273474,1764913835358,-554.14,0.00019178,2]
[396273475,1764913835369,-500.0,0.00019178,2]
[396273476,1764913835380,-500.0,0.00019178,2]
[396273477,1764913835391,-270.12639854,0.00019178,2]
[396273478,1764913835402,-549.69,0.00019178,2]
[396273479,1764913835411,-500.0,0.00019178,2]
[396273480,1764913835422,-1536.39,0.00019178,2]
[396273481,1764913835431,-631.24,0.00019178,2]
[396273482,1764913835441,-500.0,0.00019178,2]
[396273483,1764913835450,-500.0,0.00019178,2]
[396273484,1764913835460,-500.0,0.00019178,2]
[396273485,1764913835470,-751.72,0.00019178,2]
[396273486,1764913835480,-500.0,0.00019178,2]
[396273487,1764913835490,-500.0,0.00019178,2]
[396273488,1764913835499,-500.0,0.00019178,2]
[396273489,1764913835509,-500.0,0.00019178,2]
[396273490,1764913835519,-305.24166043,0.00019178,2]
[396273507,1764913837790,-194.75833957,0.00019178,2]
[396273508,1764913837799,-500.0,0.00019178,2]
[396273509,1764913837809,-447.37902551,0.00019178,2]
[396273510,1764913837820,-52.62097449,0.00019178,2]
[396273511,1764913837830,-500.0,0.00019178,2]
[396273512,1764913837839,-500.0,0.00019178,2]
[396273513,1764913837849,-514.67987111,0.00019178,2]
[396273514,1764913837861,-617.98410226,0.00019178,2]
[396273515,1764913837872,-1373.14626632,0.00019178,2]
[396273516,1764913837885,-1031.66976031,0.00019178,2]
[396273517,1764913837894,-500.0,0.00019178,2]
[396273518,1764913837903,-500.0,0.00019178,2]
[396273519,1764913837913,-500.0,0.00019178,2]
[396273520,1764913837922,-500.0,0.00019178,2]
[396273521,1764913837932,-303.77626657,0.00019178,2]
[396273522,1764913837943,-196.22373343,0.00019178,2]
[396273523,1764913837953,-147.26446028,0.00019178,2]
[396273524,1764913837968,-781.18553972,0.00019178,2]
[396273525,1764913837979,-699.04,0.00019178,2]
[396273526,1764913837989,-516.45,0.00019178,2]
[396273527,1764913837999,-500.0,0.00019178,2]
[396273528,1764913838008,-500.0,0.00019178,2]
[396273529,1764913838018,-500.0,0.00019178,2]
[396273530,1764913838027,-1456.59,0.00019178,2]
[396273531,1764913838036,-737.68,0.00019178,2]
[396273532,1764913838046,-500.0,0.00019178,2]
[396273533,1764913838056,-542.46,0.00019178,2]
[396273534,1764913838071,-771.53,0.00019178,2]
[396273535,1764913838081,-803.68,0.00019178,2]
[396273536,1764913838091,-649.1,0.00019178,2]
[396273537,1764913838100,-960.15,0.00019178,2]
[396273538,1764913838111,-1183.14,0.00019178,2]
[396273539,1764913838121,-500.0,0.00019178,2]
[396273540,1764913838130,-1124.92,0.00019178,2]
[396273541,1764913838139,-1123.06,0.00019178,2]
[396273542,1764913838149,-500.0,0.00019178,2]
[396273543,1764913838159,-773.11,0.00019178,2]
[396273544,1764913838168,-500.0,0.00019178,2]
[396273545,1764913838178,-1683.67,0.00019178,2]
[396273546,1764913838188,-500.0,0.00019178,2]
[396273547,1764913838199,-2291.44,0.00019178,2]
[396273548,1764913838210,-3284.24,0.00019178,2]
[396273549,1764913838220,-500.0,0.00019178,2]
[396273550,1764913838230,-762.55,0.00019178,2]
[396273551,1764913838239,-500.0,0.00019178,2]
[396273552,1764913838248,-1530.68,0.00019178,2]
[396273553,1764913838258,-500.0,0.00019178,2]
[396273554,1764913838269,-500.0,0.00019178,2]
[396273555,1764913838278,-3690.56,0.00019178,2]
[396273556,1764913838288,-362.35509694,0.00019178,2]
[396273557,1764913838298,-604.80610244,0.00019178,2]
[396273558,1764913838307,-1268.16,0.00019178,2]
[396273559,1764913838317,-500.0,0.00019178,2]
[396273560,1764913838327,-500.0,0.00019178,2]
[396273561,1764913838337,-500.0,0.00019178,2]
[396273562,1764913838346,-760.15,0.00019178,2]
[396273563,1764913838356,-500.0,0.00019178,2]
[396273564,1764913838366,-663.27,0.00019178,2]
[396273565,1764913838376,-1579.1,0.00019178,2]
[396273566,1764913838386,-500.0,0.00019178,2]
[396273567,1764913838396,-271.525414,0.00019178,2]
[396273568,1764913838406,-2238.77,0.00019178,2]
[396273569,1764913838415,-500.0,0.00019178,2]
[396273570,1764913838425,-500.0,0.00019178,2]
[396273571,1764913838435,-834.74,0.00019178,2]
[396273572,1764913838444,-500.0,0.00019178,2]
[396273573,1764913838454,-500.0,0.00019178,2]
[396273574,1764913838463,-969.73,0.00019178,2]
[396273575,1764913838473,-1201.77,0.00019178,2]
[396273576,1764913838482,-500.0,0.00019178,2]
[396273577,1764913838492,-500.0,0.00019178,2]
[396273578,1764913838502,-2759.46,0.00019178,2]
[396273579,1764913838511,-2908.69,0.00019178,2]
[396273580,1764913838520,-500.0,0.00019178,2]
[396273581,1764913838529,-1585.68,0.00019178,2]
[396273582,1764913838539,-500.0,0.00019178,2]
[396273583,1764913838549,-724.21,0.00019178,2]
[396273584,1764913838558,-500.0,0.00019178,2]
[396273585,1764913838568,-1916.05,0.00019178,2]
[396273586,1764913838582,-1448.21,0.00019178,2]
[396273587,1764913838591,-500.0,0.00019178,2]
[396273588,1764913838601,-536.98,0.00019178,2]
[396273589,1764913838610,-1164.48,0.00019178,2]
[396273590,1764913838620,-500.0,0.00019178,2]
[396273591,1764913838630,-500.0,0.00019178,2]
[396273592,1764913838640,-500.0,0.00019178,2]
[396273593,1764913838654,-1521.09,0.00019178,2]
[396273594,1764913838663,-500.0,0.00019178,2]
[396273595,1764913838673,-500.0,0.00019178,2]
[396273596,1764913838682,-500.0,0.00019178,2]
[396273597,1764913838692,-1022.5,0.00019178,2]
[396273598,1764913838702,-905.2,0.00019178,2]
[396273599,1764913838711,-2368.27,0.00019178,2]
[396273600,1764913838721,-527.40644985,0.00019178,2]
[396273601,1764913838730,-500.0,0.00019178,2]
[396273602,1764913838740,-500.0,0.00019178,2]
[396273603,1764913838750,-500.0,0.00019178,2]
[396273604,1764913838760,-500.0,0.00019178,2]
[396273605,1764913838770,-500.0,0.00019178,2]
[396273606,1764913838780,-500.0,0.00019178,2]
[396273607,1764913838789,-500.0,0.00019178,2]
[396273608,1764913838799,-151.0,0.00019178,2]
[396273609,1764913838808,-202.968105,0.00019178,2]
[396273610,1764913838818,-500.0,0.00019178,2]
[396273611,1764913838828,-468.067688,0.00019178,2]
[396273612,1764913838839,-468.067688,0.00019178,2]
[396273613,1764913838848,-468.067688,0.00019178,2]
[396273614,1764913838858,-468.067688,0.00019178,2]
[396273615,1764913838869,-468.067688,0.00019178,2]
[396273616,1764913838879,-500.0,0.00019178,2]
[396273617,1764913838889,-500.0,0.00019178,2]
[396273618,1764913838900,-385.35324869,0.00019178,2]
[396273619,1764913838919,-82.71443931,0.00019178,2]
[396273620,1764913838929,-468.067688,0.00019178,2]
[396273621,1764913838938,-468.067688,0.00019178,2]
[396273622,1764913838949,-468.067688,0.00019178,2]
[396273623,1764913838959,-151.0,0.00019178,2]
[396273624,1764913838969,-468.067688,0.00019178,2]
[396273625,1764913838979,-151.0,0.00019178,2]
[396273626,1764913838988,-468.067688,0.00019178,2]
[396273627,1764913838998,-151.0,0.00019178,2]
[396273628,1764913839007,-468.067688,0.00019178,2]
[396273629,1764913839017,-151.0,0.00019178,2]
[396273630,1764913839026,-468.067688,0.00019178,2]
[396273631,1764913839036,-151.0,0.00019178,2]
[396273632,1764913839046,-468.067688,0.00019178,2]
[396273633,1764913839055,-1263.55,0.00019178,2]
[396273634,1764913839064,-151.0,0.00019178,2]
[396273635,1764913839073,-468.067688,0.00019178,2]
[396273636,1764913839083,-151.0,0.00019178,2]
[396273637,1764913839096,-468.067688,0.00019178,2]
[396273638,1764913839106,-500.0,0.00019178,2]
[396273639,1764913839118,-151.0,0.00019178,2]
[396273640,1764913839128,-468.067688,0.00019178,2]
[396273641,1764913839138,-151.0,0.00019178,2]
[396273642,1764913839148,-468.067688,0.00019178,2]
[396273643,1764913839160,-468.067688,0.00019178,2]
[396273644,1764913839169,-500.0,0.00019178,2]
[396273645,1764913839178,-270.840097,0.00019178,2]
[396273646,1764913839188,-468.067679,0.00019178,2]
[396273647,1764913839199,-500.0,0.00019178,2]
[396273648,1764913839208,-511.33476846,0.00019178,2]
[396273649,1764913839218,-500.0,0.00019178,2]
[396273650,1764913839227,-245.466234,0.00019178,2]
[396273651,1764913839236,-245.466234,0.00019178,2]
[396273652,1764913839245,-245.466234,0.00019178,2]
[396273653,1764913839254,-245.466234,0.00019178,2]
[396273654,1764913839263,-245.466234,0.00019178,2]
[396273655,1764913839272,-151.0,0.00019178,2]
[396273656,1764913839281,-245.466234,0.00019178,2]
[396273657,1764913839290,-193.023747,0.00019178,2]
[396273658,1764913839299,-245.466234,0.00019178,2]
[396273659,1764913839308,-245.466234,0.00019178,2]
[396273660,1764913839317,-245.466234,0.00019178,2]
[396273661,1764913839326,-245.466234,0.00019178,2]
[396273662,1764913839335,-245.466234,0.00019178,2]
[396273663,1764913839344,-500.0,0.00019178,2]
[396273664,1764913839353,-245.466234,0.00019178,2]
[396273665,1764913839362,-245.466234,0.00019178,2]
[396273666,1764913839371,-245.466234,0.00019178,2]
[396273667,1764913839380,-245.466234,0.00019178,2]
[396273668,1764913839389,-245.466234,0.00019178,2]
[396273669,1764913839399,-245.466234,0.00019178,2]
[396273670,1764913839407,-188.94049759,0.00019178,2]
[396273671,1764913839423,-56.52573641,0.00019178,2]
[396273672,1764913839433,-500.0,0.00019178,2]
[396273673,1764913839443,-500.0,0.00019178,2]
[396273675,1764913839453,-245.466234,0.00019178,2]
[396273676,1764913839462,-245.466241,0.00019178,2]
[396273677,1764913839472,-500.0,0.00019178,2]
[396273678,1764913839482,-500.0,0.00019178,2]
[396273679,1764913839492,-500.0,0.00019178,2]
[396273680,1764913839502,-518.8495961,0.00019178,2]
[396273681,1764913839512,-995.7,0.00019178,2]
[396273682,1764913839522,-500.0,0.00019178,2]
[396273683,1764913839531,-553.01378616,0.00019178,2]
[396273684,1764913839542,-2960.75,0.00019178,2]
[396273685,1764913839552,-500.0,0.00019178,2]
[396273686,1764913839562,-500.0,0.00019178,2]
[396273687,1764913839571,-1068.82,0.00019178,2]
[396273688,1764913839581,-1350.86,0.00019178,2]
[396273689,1764913839591,-500.0,0.00019178,2]
[396273690,1764913839601,-500.0,0.00019178,2]
[396273691,1764913839612,-845.59,0.00019178,2]
[396273692,1764913839624,-4058.26,0.00019178,2]
[396273693,1764913839633,-500.0,0.00019178,2]
[396273694,1764913839643,-732.17,0.00019178,2]
[396273695,1764913839652,-734.72,0.00019178,2]
[396273696,1764913839662,-500.0,0.00019178,2]
[396273697,1764913839672,-500.0,0.00019178,2]
[396273698,1764913839682,-626.97,0.00019178,2]
[396273699,1764913839691,-666.29,0.00019178,2]
[396273700,1764913839701,-1320.95,0.00019178,2]
[396273701,1764913839712,-500.0,0.00019178,2]
[396273702,1764913839721,-500.0,0.00019178,2]
[396273703,1764913839731,-151.0,0.00019178,2]
[396273704,1764913839739,-500.0,0.00019178,2]
[396273705,1764913839750,-151.0,0.00019178,2]
[396273706,1764913839759,-151.0,0.00019178,2]
[396273707,1764913839769,-151.0,0.00019178,2]
[396273708,1764913839789,-200.563971,0.00019178,2]
[396273709,1764913839799,-600.0,0.00019178,2]
[396273710,1764913839809,-500.0,0.00019178,2]
[396273711,1764913839820,-1373.6,0.00019178,2]
[396273712,1764913839830,-1173.21,0.00019178,2]
[396273714,1764913839840,-1301.86,0.00019178,2]
[396273715,1764913839850,-500.0,0.00019178,2]
[396273716,1764913839860,-2607.67,0.00019178,2]
[396273717,1764913839870,-500.0,0.00019178,2]
[396273718,1764913839879,-1671.07,0.00019178,2]
[396273719,1764913839890,-460.4,0.00019178,2]
[396273720,1764913839900,-500.38383729,0.00019178,2]
[396273721,1764913839910,-500.0,0.00019178,2]
[396273722,1764913839920,-680.42,0.00019178,2]
[396273723,1764913839929,-676.62,0.00019178,2]
[396273724,1764913839939,-641.23,0.00019178,2]
[396273725,1764913839949,-500.0,0.00019178,2]
[396273726,1764913839959,-511.22273785,0.00019178,2]
[396273727,1764913839969,-500.0,0.00019178,2]
[396273728,1764913839979,-953.29,0.00019178,2]
[396273729,1764913839989,-500.0,0.00019178,2]
[396273730,1764913839999,-692.63,0.00019178,2]
[396273731,1764913840010,-500.0,0.00019178,2]
[396273732,1764913840302,-500.0,0.00019178,2]
[396273733,1764913840332,-500.0,0.00019178,2]
[396273734,1764913840342,-1887.31,0.00019178,2]
[396273735,1764913840351,-2965.95,0.00019178,2]
[396273736,1764913840361,-506.07,0.00019178,2]
[396273737,1764913840371,-339.30553068,0.00019178,2]
[396273738,1764913840386,-277.00564171,0.00019178,2]
[396273739,1764913840396,-500.0,0.00019178,2]
[396273740,1764913840406,-500.0,0.00019178,2]
[396273741,1764913840415,-1231.99,0.00019178,2]
[396273742,1764913840424,-500.0,0.00019178,2]
[396273743,1764913840434,-500.0,0.00019178,2]
[396273744,1764913840444,-1232.46,0.00019178,2]
[396273745,1764913840453,-500.0,0.00019178,2]
[396273746,1764913840462,-500.0,0.00019178,2]
[396273747,1764913840472,-515.44,0.00019178,2]
[396273748,1764913840481,-1592.72,0.00019178,2]
[396273749,1764913840491,-575.4,0.00019178,2]
[396273750,1764913840500,-500.0,0.00019178,2]
[396273751,1764913840510,-500.0,0.00019178,2]
[396273752,1764913840520,-1174.2,0.00019178,2]
[396273753,1764913840529,-500.0,0.00019178,2]
[396273754,1764913840539,-500.0,0.00019178,2]
[396273755,1764913840550,-795.29,0.00019178,2]
[396273756,1764913840560,-2278.21,0.00019178,2]
[396273757,1764913840569,-573.18,0.00019178,2]
[396273758,1764913840579,-958.57,0.00019178,2]
[396273759,1764913840588,-500.0,0.00019178,2]
[396273760,1764913840597,-500.0,0.00019178,2]
[396273761,1764913840607,-1057.82,0.00019178,2]
[396273762,1764913840616,-500.0,0.00019178,2]
[396273763,1764913840626,-500.0,0.00019178,2]
[396273764,1764913840636,-1929.19,0.00019178,2]
[396273765,1764913840646,-500.0,0.00019178,2]
[396273766,1764913840655,-500.0,0.00019178,2]
[396273767,1764913840664,-500.0,0.00019178,2]
[396273768,1764913840674,-550.46179091,0.00019178,2]
[396273769,1764913840687,-1753.29820909,0.00019178,2]
[396273771,1764913840702,-2103.68,0.00019178,2]
[396273773,1764913840712,-500.0,0.00019178,2]
[396273774,1764913840721,-500.0,0.00019178,2]
[396273776,1764913840731,-1150.83,0.00019178,2]
[396273777,1764913840741,-500.0,0.00019178,2]
[396273778,1764913840750,-500.0,0.00019178,2]
[396273779,1764913840760,-321.15468488,0.00019178,2]
[396273780,1764913840770,-500.0,0.00019178,2]
[396273781,1764913840780,-1104.14,0.00019178,2]